Cogmind - Beta 15 --- EXPLORER MODE // 2025.05.07 @ 02:05:42 Player: Larselt Result: Destroyed by S-10 Pest with Light Assault Rifle Performance ------------- Evolutions (0) 0 Regions Visited (1) 200 Robots Destroyed (0) 0 Value Destroyed (0) 0 Prototype IDs (0) 0 Alien Tech Used (0) 0 Bonus (0) 0 TOTAL SCORE: 200 Bonus ------- None Cogmind --------- Core Integrity 0/250 Matter 280/300 Energy 99/100 System Corruption 0% Temperature Cool (0) Movement Core (50) Location -10/Materials Parts ------- > --- POWER (1) -------- (None) > --- PROPULSION (3) --- (None) > --- UTILITY (2) ------ Signal Interpreter Light Armor Plating > --- WEAPON (2) ------- (None) > --- INVENTORY (5) ---- Medium Storage Unit Large Matter Pod (25) Terrain Scanner Transport Network Coupler Propulsion Shielding Peak State ------------ > --- POWER ------------ Light Ion Engine > --- PROPULSION ------- Aluminum Leg Aluminum Leg Aluminum Leg > --- UTILITY ---------- Medium Storage Unit Signal Interpreter > --- WEAPON ----------- (None) > --- INVENTORY -------- Light Ion Engine Terrain Scanner Propulsion Shielding Light Armor Plating [Rating: 6] Favorites ----------- Power Light Ion Engine Engine Light Ion Engine Propulsion Aluminum Leg Leg Aluminum Leg Utility Signal Interpreter Storage Medium Storage Unit Processor Signal Interpreter Protection Propulsion Shielding Weapon None Build | -11 -10 ------- Run | Yrd Mat Slots Evolved 1 | . 1 Power . | . . Propulsion 1 | . 1 Utility . | . . Weapon . | . . Parts Attached 8 | 5 3 Power 1 | 1 . Engine 1 | 1 . Core . | . . Reactor . | . . Propulsion 3 | 2 1 Treads . | . . Leg 3 | 2 1 Wheel . | . . Hover . | . . Flight . | . . Utility 4 | 2 2 Device . | . . Storage 1 | 1 . Processor 1 | 1 . Hackware . | . . Protection 2 | . 2 Artifact . | . . Weapon . | . . Energy Gun . | . . Energy Cannon . | . . Ballistic Gun . | . . Ballistic Cannon . | . . Launcher . | . . Special Weapon . | . . Impact Weapon . | . . Slashing Weapon . | . . Piercing Weapon . | . . Special Melee Weapon . | . . Unidentified Prototypes . | . . Parts Lost 3 | . 3 Power . | . . Propulsion 3 | . 3 Utility . | . . Weapon . | . . Highest Loss Streak 2 | . 2 To Critical Strikes . | . . Average Backups 5 | 2 5 Power . | . . Propulsion . | . . Utility 4 | 2 4 Weapon . | . . Tool/Special . | . . Unused Backups 4 | . 4 Power 1 | . 1 Propulsion . | . . Utility 3 | . 3 Weapon . | . . Tool/Special . | . . Average Slot Usage (%) 55 | . 55 Engine 7 | . 7 Leg 22 | . 22 Storage 10 | . 10 Processor 12 | . 12 Protection 1 | . 1 Peak Build Rating 6 | 5 6 Average Rating 4 | 3 4 On Entrance 2 | . 5 Naked Turns . | . . Heaviest Build 13 | 13 13 Greatest Support 30 | 20 30 Greatest Overweight (x) 3 | . 3 Average Overweight (x) . | . . Largest Inventory Capacity 10 | 10 10 Average Capacity 8 | 7 9 Most Carried 9 | 5 9 Average Carried 5 | 2 5 Final Capacity 10 | 10 5 Final Carried 5 | 4 5 Class Distribution -------------------- 100% | Hacker-Mutant Dominant Class ---------------- Hacker-Mutant | -10/Materials Resources | -11 -10 ----------- Run | Yrd Mat Matter Collected 310 | 115 195 Remotely . | . . Salvage Created . | . . Parts . | . . Haulers Intercepted . | . . Recyclers Shooed . | . . Parts Field Recycled . | . . Retrieved Matter . | . . Parts Self-Destructed . | . . Prevented . | . . Kills | -11 -10 ------- Run | Yrd Mat Combat Hostiles Destroyed . | . . Classes Destroyed . | . . Best Kill Streak . | . . Combat Bots Only . | . . Max Kills in Single Turn . | . . Gunslinging . | . . Exploded . | . . Melee . | . . Uniques/NPCs Destroyed . | . . Combat | -11 -10 -------- Run | Yrd Mat Hostile Shots Fired 158 | . 158 Missed 55 | . 55 Hits 103 | . 103 Projectile 103 | . 103 Damage Taken 551 | . 551 Core 253 | . 253 Absorbed by Shields . | . . Redirected to Shielding 8 | . 8 Ignored by Resistances 383 | . 383 Core Remaining (%) 100 | 100 . Volleys Fired . | . . Largest . | . . Hottest . | . . Shots Fired . | . . Gun . | . . Cannon . | . . Launcher . | . . Special . | . . Kinetic . | . . Thermal . | . . Explosive . | . . Electromagnetic . | . . Robot Hit Streak . | . . Robot Miss Streak . | . . Penetration Max . | . . Secondary Targets . | . . Shots Hit Robots . | . . Core Hits . | . . Critical Kills . | . . Critical Parts Destroyed . | . . Critical Strikes . | . . Melee Attacks . | . . Impact . | . . Slashing . | . . Piercing . | . . Sneak Attacks . | . . Combat Hostiles . | . . Follow-up Attacks . | . . Damage Inflicted . | . . Guns . | . . Cannons . | . . Explosions . | . . Melee . | . . Ramming . | . . Kinetic . | . . Thermal . | . . Explosive . | . . Electromagnetic . | . . Impact . | . . Slashing . | . . Piercing . | . . Highest Corruption . | . . Average Corruption . | . . Corruption Purged . | . . Corruption Blocked . | . . Overload Shots . | . . Overflow Damage . | . . Projectiles . | . . Explosions . | . . Melee . | . . Knockbacks . | . . Impact . | . . Kinetic . | . . Secondary . | . . Self-Inflicted Damage . | . . Shots . | . . Rammed . | . . Targets Rammed . | . . Kicked . | . . Crushed . | . . Highest Temperature . | . . Average Temperature . | . . Received Heat Transfer 216 | . 216 Siege Activations . | . . Martial Activations . | . . Shielding Activations . | . . Robots Disrupted . | . . Combat Hostiles . | . . Robots Corrupted . | . . Combat Hostiles . | . . Parts Fried . | . . Impact Corruptions . | . . Robots Melted . | . . Combat Hostiles . | . . Parts Melted . | . . Heat Transferred . | . . Parts Sabotaged . | . . Parts Stolen . | . . Parts Stripped . | . . Power Chain Reactions . | . . Alert | -11 -10 ------- Run | Yrd Mat Maximum Alert Level . | . . Low Security (%) 100 | 100 100 Level 1 . | . . Level 2 . | . . Level 3 . | . . Level 4 . | . . Level 5 . | . . High Security . | . . Max Security . | . . Peak Influence 15 | . 15 Initial . | . . Average . | . . Influence Increases 30 | . 30 Lose Combat Pursuer 30 | . 30 Influence Decreases 30 | . 30 Time Decay 30 | . 30 Squads Dispatched . | . . Investigation . | . . Extermination . | . . Reinforcement . | . . Assault . | . . Garrison . | . . Intercept . | . . Searches Triggered . | . . Construction Impeded . | . . Haulers Reinforced . | . . Active Scanning Responses . | . . Cargo Convoy Interrupts . | . . Stealth | -11 -10 --------- Run | Yrd Mat Distress Signals . | . . Communications Jammed . | . . Distress Signals . | . . Times Spotted 10 | . 10 Peak Tracking Total 6 | . 6 Tactical Retreats 2 | . 2 Traps | -11 -10 ------- Run | Yrd Mat Traps Triggered 2 | . 2 Indirectly . | . . Trap Hack Attempts . | . . Triggered . | . . Disarmed . | . . Reprogrammed . | . . Reused . | . . Traps Extracted . | . . Installed . | . . Triggered . | . . Machines | -11 -10 ---------- Run | Yrd Mat Machines Disabled . | . . Max in Single Turn . | . . Machines Repaired . | . . Machines Dismantled . | . . Machines Sabotaged . | . . Overloaded Fab Kills . | . . Hacking | -11 -10 --------- Run | Yrd Mat Machines Accessed . | . . Terminals . | . . Fabricators . | . . Repair Stations . | . . Recycling Units . | . . Scanalyzers . | . . Garrison Access . | . . Total Hacks . | . . Successful . | . . Failed . | . . Catastrophic . | . . Database Lockouts . | . . Manual . | . . Terminals . | . . Fabricators . | . . Repair Stations . | . . Recycling Units . | . . Scanalyzers . | . . Garrison Access . | . . Terminal Hacks . | . . Fabricator Hacks . | . . Repair Station Hacks . | . . Recycling Unit Hacks . | . . Scanalyzer . | . . Garrison Access Hacks . | . . Unauthorized Hacks . | . . Terminals . | . . Fabricators . | . . Repair Stations . | . . Recycling Units . | . . Scanalyzers . | . . Garrison Access . | . . Data Cores Recovered . | . . Used . | . . Hacking Detections . | . . Full Trace Events . | . . Feedback Events . | . . Feedback Blocked . | . . Robot Schematics Acquired . | . . Robots Built . | . . Authchips . | . . Time . | . . Total Robot Build Rating . | . . Part Schematics Acquired . | . . Parts Built . | . . Authchips . | . . Time . | . . Total Part Build Rating . | . . Parts Repaired . | . . Time . | . . Parts Recycled . | . . Recycled Matter . | . . Retrieved Matter . | . . Retrieved Components . | . . Parts Scanalyzed . | . . Part Schematics Acquired . | . . Parts Damaged . | . . Bothacking | -11 -10 ------------ Run | Yrd Mat Used RIF Installer . | . . Robots Hacked . | . . Non-combat . | . . Combat . | . . Robot Hacks Applied . | . . Relay Couplers Released . | . . Fabnet Peak Effective % . | . . Robots Rewired . | . . Allies Hacked . | . . Hacks Repelled . | . . Allies | -11 -10 -------- Run | Yrd Mat Total Allies . | . . Largest Group . | . . Highest-Rated Group . | . . Highest-Rated Ally . | . . Total Orders . | . . Ally Attacks . | . . Total Damage . | . . Kills . | . . Allies Corrupted . | . . Allies Melted . | . . Intel | -11 -10 ------- Run | Yrd Mat Active Infowar (turns) . | . . Robot Analysis Total . | . . Derelict Logs Recovered . | . . Drone Launches . | . . Drone Recoveries . | . . Exploration | -11 -10 ------------- Run | Yrd Mat Turns Passed 458 | 54 404 Spaces Moved 368 | 37 331 Core 54 | 11 43 Treads . | . . Legs 314 | 26 288 Wheels . | . . Hover . | . . Flight . | . . Fastest Speed 50 | 50 50 Average Speed 113 | 99 115 Slowest Speed 200 | 120 200 Overloaded Moves . | . . Propulsion Burnouts . | . . Robots Hopped . | . . Potential Cave-ins . | . . Cave-ins Triggered . | . . Exploration Rate (%) 22 | 4 41 Regions Visited 1 Branch Regions . Pre-discovered Areas . | . . Known Exits Taken 1 | 1 . Unknown Exits Taken . | . . Scrap Searched . | . . Spaces Dug . | . . Terrain Destroyed . | . . Melee . | . . Projectile . | . . AOE . | . . Terrain Rammed . | . . Walls Destroyed . | . . Machines Disabled . | . . Actions | -11 -10 --------- Run | Yrd Mat Total 407 | 54 353 Wait 9 | 4 5 Move 367 | 36 331 Hop . | . . Pick Up 16 | 9 7 Fast Attach . | . . Attach 10 | 5 5 Detach 1 | . 1 Swap 2 | . 2 Drop 2 | . 2 Fire . | . . Melee . | . . Ram . | . . Kick . | . . Crush . | . . Escape Stasis . | . . Rewire . | . . Trap . | . . Miscellaneous . | . . Route ------- -11/Scrapyard -10/Materials (discovered 1 exit: *Min) History --------- Turn | Location | Event 15 | -11/Scrapyard | Identified exit to Materials 15 | -11/Scrapyard | Discovered exit to Materials (range 16) 55 | -11/Scrapyard | Entered Materials 55 | -10/Materials | Evolved 1 slot: Propulsion x1 327 | -10/Materials | Core integrity fell below 50% 360 | -10/Materials | Build established: Hacker-Mutant 401 | -10/Materials | Core integrity fell below 20% 447 | -10/Materials | Identified exit to Mines 447 | -10/Materials | Discovered exit to Mines (range 16) 459 | -10/Materials | Destroyed by S-10 Pest with Light Assault Rifle Last Messages --------------- 00189_ Triggered Blade Trap. 00189_ Massive razor-sharp blades shoot up from within the floor. 00189_ Aluminum Leg severed. 00189_ Lgt. Ion Engine severed. 00191_ Acquired Aluminum Leg. 00192_ Triggered Blade Trap. 00192_ Massive razor-sharp blades shoot up from within the floor. 00192_ Aluminum Leg severed. 00195_ Acquired Aluminum Leg. 00198_ Acquired Lgt. Ion Engine. 00201_ Acquired Aluminum Leg. 00202_ U-05 Engineer lays Concrete. 00224_ Acquired Lrg. Matter Pod. 00225_ Acquired 64 matter. 00315_ S-10 Pest destroyed. 00315_ Dropped Lgt. Ion Engine. 00338_ Aluminum Leg destroyed. 00447_ EXIT=FOUND: MINES Map ----- +----------------------------------------------------+ | ?########## #?????????########??????????????# | | ?# # #????????????????????????????####+### | | ?# " # #????????????????????????????# *=%[ | | ?# """"" # #????????????????????????????# * | | ?# """"" # #????????????????????????????# * | | ?# """"" + #????????????????????????????# | | ?# """"" # #########????????????????????# | | ?# """" # # #????????????????????# | | ?# " # # #? ????????????????# | | ?# # + #? "???????????????# | | ?########## # #? "???????????????# | | ???# ?# # #? ""??????????????######## | | ???# ! # ########## ??????????????????????? | | ???# # #?######## ??????????????????????? | | ???# """ + #?# # #??????????????????????? | | ???# """ # #?# # #??????????????????????? | | ???# """ # #?# # #??????????????????????? | | ???######?# #?? # #??????????????????????? | | ??????????# #??? # #??????????????????????? | | ??????????# #???? # #########??????????????? | | ??????????# #??###+### # ##+#???????????? | | ########??# #??# ??????????? | | #### #### > ??????????? | | s ??????????? | | ########## ####s##" "#??????????????? | | #### ########## ## s@#??????"#??????????????? | | # # # ## #??????????????????????? | | "" # # + ## #??????????????????????? | | "" # # [ # ## ###????????????????????? | | "" # # # ## ""#????????????????????? | | + + # ## T"#????????????????????? | | # # # ## ""#????????????????????? | | [ ##### # ## ###????????????????????? | | #???# # ## #??????????????????????? | | ####???# # #######??????????????????????? | | ???????########## #????????????????????????????? | | ????????????????# #????????????????????????????? | | ????????????????# #????????????????????????????? | | ????????????????? ?????????????????????????????? | | ?????????????????????????????????????????????????? | | ?????????????????????????????????????????????????? | | ?????????????????????????????????????????????????? | | ?????????????????????????????????????????????????? | | ?????????????????????????????????????????????????? | | ?????????????????????????????????????????????????? | | ?????????????????????????????????????????????????? | | ?????????????????????????????????????????????????? | | ?????????????????????????????????????????????????? | | ?????????????????????????????????????????????????? | | ?????????????????????????????????????????????????? | +----------------------------------------------------+ Best States ------------- Heat Dissipation 25 Energy Generation 10 Energy Capacity 125 Matter Stores 300 Matter Capacity 300 Sight Range 16 Terrain Scan Density 10 Resistance: KI 35 Resistance: TH 35 Resistance: EX 35 Resistance: EM 35 Resistance: I 35 Resistance: S 35 Resistance: P 35 Propulsion Shielding 33 Evasion (%) 55 Offensive Hacking 20 Item Schematics ----------------- None Robot Schematics ------------------ None Fabricated ------------ Nothing Repaired ---------- Nothing Alien Tech Used ----------------- None Achievements -------------- None Challenges ------------ None Game ------ Seed SpacefoldGyrokineticEdition Manual? 0 Play Time 00:13:24 Cumulative 22.7 hours Start 2025.05.07 @ 01:50:41 End 2025.05.07 @ 02:05:42 Sessions 1 Manual Loads 0 Difficulty Explorer Special Mode None Game No. 8 Rogue 3 Adventurer 4 Explorer 1 Win Type - Total 0 Types 0/0/0/0/0/0/0/0/0/0 Lore% 2 Gallery% 17 Achievement% 19 Wizard Run 0 Options --------- Layout 1 ASCII 0 Keyboard 0 Movement Mouse Keybinds 0 Fullscreen 1 Font 48/Tamsyn Map View 50x35 Zoom Use 0% Tactical HUD 1 Map Filters NONE Filters NONE Steam 1 RUN: ec517c7b-c303-4288-b46c-abd6c69edbaa